Cogmind - Beta 17.1 @@@ ROGUE MODE // 2026.09.02 @ 22:01:29 Player: UnderDoug Result: Destroyed by 7W-4KN(R) with Subdweller Laser Performance ------------- Evolutions (0) 0 Regions Visited (2) 400 Robots Destroyed (16) 80 Value Destroyed (359) 359 Prototype IDs (0) 0 Alien Tech Used (0) 0 Bonus (0) 0 TOTAL SCORE: 839 Bonus ------- None Cogmind --------- Core Integrity 0/250 Matter 261/300 Energy 250/250 System Corruption 0% Temperature Cool (6) Movement Walking (190) Ox1 Location -10/Subcaves Parts ------- > --- POWER (1) -------- Ion Engine > --- PROPULSION (2) --- Aluminum Leg Aluminum Leg > --- UTILITY (2) ------ Large Storage Unit Structural Scanner > --- WEAPON (2) ------- Barrage Gun Light Cannon > --- INVENTORY (15) --- Ion Engine Light Ion Engine Light Ion Engine Light Treads Light Treads Compact Wheel Medium Storage Unit Large Battery (200) Signal Interpreter Signal Interpreter Signal Interpreter ECM Suite Small Laser Mining Laser Mining Laser Peak State ------------ > --- POWER ------------ Light Nuclear Core > --- PROPULSION ------- Aluminum Leg Aluminum Leg > --- UTILITY ---------- Medium Storage Unit Structural Scanner > --- WEAPON ----------- Light Assault Rifle Light Assault Rifle > --- INVENTORY -------- Light Ion Engine Light Treads Light Treads Aluminum Leg Wheel Large Battery ECM Suite Small Laser Mining Laser Mining Laser [Rating: 10] Favorites ----------- Power Light Nuclear Core Engine Light Ion Engine Power Core Light Nuclear Core Propulsion Aluminum Leg Leg Aluminum Leg Utility Structural Scanner Device Structural Scanner Storage Medium Storage Unit Weapon Light Assault Rifle Ballistic Gun Light Assault Rifle Ballistic Cannon Light Cannon Special Weapon Mining Laser Build | -11 -10 -10 ------- Run | Yrd Mat Sub Slots Evolved . | . . . Power . | . . . Propulsion . | . . . Utility . | . . . Weapon . | . . . Parts Attached 20 | 6 12 2 Power 4 | 1 3 . Engine 3 | 1 2 . Core 1 | . 1 . Reactor . | . . . Propulsion 4 | 2 2 . Treads . | . . . Leg 4 | 2 2 . Wheel . | . . . Hover . | . . . Flight . | . . . Utility 6 | 1 5 . Device 2 | . 2 . Storage 4 | 1 3 . Processor . | . . . Hackware . | . . . Protection . | . . . Artifact . | . . . Weapon 6 | 2 2 2 Energy Gun . | . . . Energy Cannon . | . . . Ballistic Gun 4 | 2 1 1 Ballistic Cannon 1 | . 1 . Launcher . | . . . Special Weapon 1 | . . 1 Impact Weapon . | . . . Slashing Weapon . | . . . Piercing Weapon . | . . . Special Melee Weapon . | . . . Unidentified Prototypes . | . . . Parts Lost 4 | . 4 . Power 1 | . 1 . Propulsion 1 | . 1 . Utility 1 | . 1 . Weapon 1 | . 1 . Highest Loss Streak 2 | . 2 . To Critical Strikes . | . . . Average Backups 10 | 4 9 15 Power 1 | . 1 3 Propulsion 3 | 3 3 3 Utility 3 | . 2 6 Weapon 2 | . 2 3 Tool/Special . | . . . Unused Backups 13 | . 2 11 Power 2 | . . 2 Propulsion 5 | . 2 3 Utility 4 | . . 4 Weapon 2 | . . 2 Tool/Special . | . . . Average Slot Usage (%) 97 | . 97 100 Engine 8 | . 7 14 Core 5 | . 6 . Leg 27 | . 27 28 Device 13 | . 12 14 Storage 14 | . 14 14 Ballistic Gun 21 | . 24 12 Ballistic Cannon 5 | . 2 14 Peak Build Rating 10 | 6 10 10 Average Rating 8 | 4 8 8 On Entrance 4 | . 6 8 Avg Prop Armor Cover (%) . | . . . Naked Turns . | . . . Heaviest Build 32 | 11 30 32 Greatest Support 20 | 20 20 20 Greatest Overweight (x) 1 | 1 1 1 Average Overweight (x) . | . . 1 Largest Inventory Capacity 15 | 8 15 15 Average Capacity 10 | 7 10 15 Most Carried 15 | 7 15 15 Average Carried 10 | 4 9 15 Final Capacity 15 | 8 15 15 Final Carried 15 | 6 15 15 Class Distribution -------------------- 100% | Mutant Dominant Class ---------------- Mutant | -10/Materials Mutant | -10/Subcaves Resources | -11 -10 -10 ----------- Run | Yrd Mat Sub Matter Collected 601 | 260 291 50 Remotely . | . . . Salvage Created 421 | . 381 40 Parts 28 | . 28 . Haulers Intercepted . | . . . Recyclers Shooed . | . . . Parts Field Recycled . | . . . Retrieved Matter . | . . . Parts Self-Destructed 4 | . . 4 Prevented . | . . . Parts Restored . | . . . Kills | -11 -10 -10 ------- Run | Yrd Mat Sub Combat Hostiles Destroyed 14 | . 13 1 Guns 13 | . 12 1 Cannons 1 | . 1 . Classes Destroyed 4 | . 3 1 Watcher 2 | . 2 . Swarmer 7 | . 7 . Grunt 6 | . 6 . Subdweller 1 | . . 1 Best Kill Streak 3 | . 3 1 Combat Bots Only 3 | . 3 1 Max Kills in Single Turn 1 | . 1 1 Gunslinging . | . . . Exploded . | . . . Melee . | . . . Uniques/NPCs Destroyed . | . . . Combat | -11 -10 -10 -------- Run | Yrd Mat Sub Hostile Shots Fired 105 | . 94 11 Missed 25 | . 21 4 Hits 80 | . 73 7 Projectile 80 | . 73 7 Damage Taken 916 | . 782 134 Core 252 | . 192 60 Absorbed by Shields . | . . . Regen/Repaired (Parts) 88 | . 88 . Core Remaining (%) 100 | 100 . . Volleys Fired 79 | . 68 11 Largest 2 | . 2 2 Hottest 130 | . 50 130 Shots Fired 146 | . 124 22 Gun 129 | . 122 7 Cannon 13 | . 2 11 Launcher . | . . . Special 4 | . . 4 Kinetic 142 | . 124 18 Thermal 4 | . . 4 Explosive . | . . . Electromagnetic . | . . . Robot Hit Streak 14 | . 14 6 Robot Miss Streak 9 | . 9 1 Penetration Max . | . . . Secondary Targets 1 | . 1 . Max Gunslinging Chain 1 | . 1 . Shots Hit Robots 82 | . 73 9 Core Hits 32 | . 29 3 Critical Kills . | . . . Critical Parts Destroyed 1 | . 1 . Critical Strikes 2 | . 1 1 Destroy 1 | . 1 . Blast 1 | . . 1 Melee Attacks . | . . . Impact . | . . . Slashing . | . . . Piercing . | . . . Sneak Attacks . | . . . Combat Hostiles . | . . . Follow-up Attacks . | . . . Damage Inflicted 788 | . 668 120 Guns 674 | . 652 22 Cannons 114 | . 16 98 Explosions . | . . . Melee . | . . . Ramming . | . . . Kinetic 788 | . 668 120 Thermal . | . . . Explosive . | . . . Electromagnetic . | . . . Impact . | . . . Slashing . | . . . Piercing . | . . . Highest Corruption . | . . . Average Corruption . | . . . Corruption Purged . | . . . Corruption Blocked . | . . . Overload Shots . | . . . Overflow Damage . | . . . Projectiles . | . . . Explosions . | . . . Melee . | . . . Knockbacks 1 | . . 1 Impact . | . . . Kinetic 1 | . . 1 Secondary . | . . . Self-Inflicted Damage . | . . . Shots . | . . . Rammed . | . . . Targets Rammed . | . . . Kicked . | . . . Crushed . | . . . Highest Temperature 30 | . 30 . Average Temperature 7 | . 7 . Received Heat Transfer 246 | . 234 12 Siege Activations . | . . . Martial Activations . | . . . Shielding Activations . | . . . Robots Disrupted . | . . . Combat Hostiles . | . . . Robots Corrupted . | . . . Combat Hostiles . | . . . Parts Fried . | . . . Impact Corruptions . | . . . Robots Melted . | . . . Combat Hostiles . | . . . Parts Melted . | . . . Heat Transferred . | . . . Parts Sabotaged . | . . . Parts Stolen . | . . . Parts Stripped . | . . . Power Chain Reactions . | . . . Alert | -11 -10 -10 ------- Run | Yrd Mat Sub Maximum Alert Level . | . . . Low Security (%) 100 | 100 100 . Level 1 . | . . . Level 2 . | . . . Level 3 . | . . . Level 4 . | . . . Level 5 . | . . . High Security . | . . . Max Security . | . . . Peak Influence 85 | . 85 . Initial . | . . . Average 22 | . 24 . Influence Increases 416 | . 416 . Destroy 0b10 Robot/C 260 | . 260 . Destroy 0b10 Robot/NC 10 | . 10 . Destroy Leader 54 | . 54 . Successful Hack 17 | . 17 . Lose Combat Pursuer 75 | . 75 . Influence Decreases 416 | . 392 24 Entered New Map 12 | . . 12 Time Decay 364 | . 352 12 Lost Part 40 | . 40 . Squads Dispatched 3 | . 3 . Investigation . | . . . Extermination . | . . . Reinforcement 3 | . 3 . Assault . | . . . Garrison . | . . . Intercept . | . . . Searches Triggered . | . . . Construction Impeded . | . . . Haulers Reinforced . | . . . Active Scanning Responses . | . . . Cargo Convoy Interrupts . | . . . Stealth | -11 -10 -10 --------- Run | Yrd Mat Sub Distress Signals 1 | . 1 . Communications Jammed . | . . . Distress Signals . | . . . Times Spotted 28 | . 26 2 Peak Tracking Total 4 | . 4 1 Tactical Retreats 4 | . 4 . Traps | -11 -10 -10 ------- Run | Yrd Mat Sub Traps Triggered 1 | . 1 . Indirectly . | . . . Trap Hack Attempts . | . . . Triggered . | . . . Disarmed . | . . . Reprogrammed . | . . . Reused . | . . . Traps Extracted . | . . . Installed . | . . . Triggered . | . . . Machines | -11 -10 -10 ---------- Run | Yrd Mat Sub Machines Disabled . | . . . Max in Single Turn . | . . . Machines Repaired . | . . . Machines Dismantled . | . . . Machines Sabotaged . | . . . Overloaded Fab Kills . | . . . Hacking | -11 -10 -10 --------- Run | Yrd Mat Sub Machines Accessed 9 | . 7 2 Terminals 5 | . 5 . Fabricators . | . . . Repair Stations 1 | . 1 . Recycling Units 1 | . 1 . Scanalyzers . | . . . Garrison Access . | . . . Total Hacks 13 | . 11 2 Successful 12 | . 10 2 Failed 1 | . 1 . Catastrophic . | . . . Database Lockouts . | . . . Manual . | . . . Terminals 7 | . 7 . Fabricators . | . . . Repair Stations 2 | . 2 . Recycling Units 2 | . 2 . Scanalyzers . | . . . Garrison Access . | . . . Terminal Hacks 8 | . 6 2 Robot Analysis 1 | . 1 . Open Door 1 | . . 1 Branch Access Points 1 | . 1 . Locate Traps 1 | . 1 . Zone Layout 3 | . 3 . Release Object 1 | . . 1 Fabricator Hacks . | . . . Repair Station Hacks 2 | . 2 . Scan Component 1 | . 1 . Repair 1 | . 1 . Recycling Unit Hacks 2 | . 2 . Report Inventory 1 | . 1 . Retrieve Components 1 | . 1 . Scanalyzer . | . . . Garrison Access Hacks . | . . . Unauthorized Hacks . | . . . Terminals . | . . . Fabricators . | . . . Repair Stations . | . . . Recycling Units . | . . . Scanalyzers . | . . . Garrison Access . | . . . Data Cores Recovered . | . . . Used . | . . . Hacking Detections 1 | . 1 . Full Trace Events . | . . . Feedback Events . | . . . Feedback Blocked . | . . . Robot Schematics Acquired . | . . . Robots Built . | . . . Authchips . | . . . Time . | . . . Total Robot Build Rating . | . . . Part Schematics Acquired . | . . . Parts Built . | . . . Authchips . | . . . Time . | . . . Total Part Build Rating . | . . . Part Studies Acquired . | . . . Parts Repaired 1 | . 1 . Time 26 | . 26 . Parts Recycled . | . . . Recycled Matter . | . . . Retrieved Matter . | . . . Retrieved Components 4 | . 4 . Parts Scanalyzed . | . . . Part Schematics Acquired . | . . . Parts Damaged . | . . . Bothacking | -11 -10 -10 ------------ Run | Yrd Mat Sub Used RIF Installer . | . . . Robots Hacked . | . . . Non-combat . | . . . Combat . | . . . Robot Hacks Applied . | . . . Relay Couplers Released . | . . . Fabnet Peak Effective % . | . . . Robots Rewired . | . . . Allies Hacked . | . . . Hacks Repelled . | . . . Allies | -11 -10 -10 -------- Run | Yrd Mat Sub Total Allies . | . . . Largest Group . | . . . Highest-Rated Group . | . . . Highest-Rated Ally . | . . . Total Orders . | . . . Ally Attacks . | . . . Total Damage . | . . . Kills . | . . . Allies Corrupted . | . . . Allies Melted . | . . . Intel | -11 -10 -10 ------- Run | Yrd Mat Sub Active Infowar (turns) 1461 | . 1120 341 Sensors 542 | . 542 . Structural 919 | . 578 341 Robot Analysis Total 1 | . 1 . Derelict Logs Recovered . | . . . Drone Launches . | . . . Drone Recoveries . | . . . Exploration | -11 -10 -10 ------------- Run | Yrd Mat Sub Turns Passed 1630 | 90 1199 341 Spaces Moved 912 | 57 699 156 Core 7 | 7 . . Treads . | . . . Legs 905 | 50 699 156 Wheels . | . . . Hover . | . . . Flight . | . . . Fastest Speed 50 | 50 120 190 Average Speed 137 | 132 125 190 Slowest Speed 190 | 190 190 190 Overloaded Moves . | . . . Propulsion Burnouts . | . . . Robots Hopped . | . . . Potential Cave-ins . | . . . Cave-ins Triggered . | . . . Exploration Rate (%) 36 | 4 98 8 Regions Visited 2 Branch Regions 1 Pre-discovered Areas . | . . . Known Exits Taken . | . . . Unknown Exits Taken 2 | 1 1 . Scrap Searched . | . . . Spaces Dug . | . . . Terrain Destroyed . | . . . Melee . | . . . Projectile . | . . . AOE . | . . . Terrain Rammed . | . . . Walls Destroyed . | . . . Machines Disabled . | . . . Actions | -11 -10 -10 --------- Run | Yrd Mat Sub Total 1157 | 69 916 172 Wait 112 | . 112 . Move 910 | 56 698 156 Hop . | . . . Pick Up 24 | 7 17 . Fast Attach 7 | 5 2 . Attach 6 | 1 5 . Detach . | . . . Swap 9 | . 6 3 Drop 9 | . 8 1 Fire 79 | . 68 11 Melee . | . . . Ram . | . . . Kick . | . . . Crush . | . . . Escape Stasis . | . . . Rewire . | . . . Trap . | . . . Miscellaneous 1 | . . 1 Route ------- -11/Scrapyard -10/Materials (discovered 5 exits: [*Mat x3] / *Min / *Sub) -10/Subcaves History --------- Turn | Location | Event 20 | -11/Scrapyard | Discovered new exit (range 16) 91 | -11/Scrapyard | Entered Materials 175 | -10/Materials | Discovered new exit (range 16) 185 | -10/Materials | Identified exit to Mines 307 | -10/Materials | Build established: Mutant 340 | -10/Materials | Discovered new exit (range 16) 606 | -10/Materials | Discovered new exit (range 16) 824 | -10/Materials | Core integrity fell below 50% 1043 | -10/Materials | Repaired Aluminum Leg 1096 | -10/Materials | Discovered new exit (range 9) 1146 | -10/Materials | Discovered new exit (range 16) 1290 | -10/Materials | Entered Subcaves 1291 | -10/Subcaves | Shifting Twisted Machinery released Sub. Beam Cannon 1446 | -10/Subcaves | Released subatomizers from SUBCON Basin 1565 | -10/Subcaves | Shifting Twisted Machinery released Barrage Gun 1591 | -10/Subcaves | Core integrity fell below 20% 1631 | -10/Subcaves | Destroyed by 7W-4KN(R) with Subdweller Laser Last Messages --------------- Current location identified: Subcaves >>Open Door Sealed Heavy Doors opened. Connecting with SUBCON Basin Controls... >>Release Inventory Accessing inventory controls... Collection purity confirmed 100%... Ejecting SUBCON Basin... Delivery behind schedule, handle with care! Released subatomizers from SUBCON Basin. Barrage Gun falls loose from the Twisted Machinery. FN-3L4(R) Sub. Power Source blasted off. FN-3L4(R) destroyed. Dropped Lgt. Assault Rifle. Acquired 40 matter. Subatomizers dissect the Sub. Power Source. Acquired 8 matter. Acquired 2 matter. 7W-4KN(R) knocked back. Map ----- +----------------------------------------------------+ | ????????????#### # ###????????????????? | | ?????????????###### ## ## #######????????????? | | ??????????????######## ### ######????????????? | | ?????????????????###### ### # # ##????????????? | | ????????????????????## ### ###????????????? | | ????????????????????## ## # ##?????????????? | | ????????????????????### ## ## ##?????????????? | | ????????????????????### ### # ##?????????????? | | ????????????????????### ### ##?????????????? | | ????????????????????##"" ## ##?????????????? | | ????????????????????###"" " ###????????????? | | ????????????????????#### " """ ####???????????? | | ?????????????????????## ""## "" ###???????????? | | ?????????????????????##" "####"" ##???????????? | | ?????????????????????### ###"#] ##???????????? | | ??????????????????##### """" ##???????????? | | ????????????????######## """ ###???????????? | | ????????????????#### """ # # " ####???????????? | | ????????????????## [ "" ###########????????????? | | ????????????????###" ""##########?????????????? | | ????????????????### " ###????????????????????? | | ?????????????????### ##????????????????????? | | ?????????????????### ##????????????????????? | | ??????????????????## *" ##????????????????????? | | ??????????????????### "###????????????????????? | | ??????????????????### ##@"##????????????????????? | | ???????????????????## ### ###????????????????????? | | ???????????????????##### "##????????????????????? | | ???????????????????##### "##????????????????????? | | ??????????????????????# R %" ???????????????????? | | ?????????????????????? ## ???????????????????? | | ????????????????????? ### ???????????????????? | | ???????????????????## # """#"????????????????????? | | ???????????????????#####" ##?????????????????????? | | ???????????????????##### ?????????????????????? | | ??????????????????????# ??????????????????????? | | ??????????????????????? ??????????????????????? | | ???????????????????????# ??????????????????????? | | ???????????????????????## ??????????????????????? | | ???????????????????????# ??????????????????????? | | ?????????????????????????????????????????????????? | | ?????????????????????????????????????????????????? | | ?????????????????????????????????????????????????? | | ?????????????????????????????????????????????????? | | ?????????????????????????????????????????????????? | | ?????????????????????????????????????????????????? | | ?????????????????????????????????????????????????? | | ?????????????????????????????????????????????????? | | ?????????????????????????????????????????????????? | | ?????????????????????????????????????????????????? | +----------------------------------------------------+ Best States ------------- Heat Dissipation 25 Energy Generation 14 Energy Capacity 325 Matter Stores 300 Matter Capacity 300 Sight Range 16 Robot Scan Range 14 Terrain Scan Density 10 Evasion (%) 55 Item Schematics ----------------- None Robot Schematics ------------------ None Fabricated ------------ Nothing Repaired ---------- Aluminum Leg | 2% | -10/Materials Studied --------- None Alien Tech Used ----------------- None Achievements -------------- None Challenges ------------ None Game ------ Seed DefenseMetaSpoofer Manual? 0 Play Time 00:15:54 Cumulative 15.8 hours Start 2026.09.02 @ 21:47:42 End 2026.09.02 @ 22:01:29 Sessions 1 Manual Loads 0 Difficulty Rogue Special Mode None Game No. 32 Rogue 32 Adventurer 0 Explorer 0 Win Type - Total 0 Types 0/0/0/0/0/0/0/0/0/0 Lore% 25 Gallery% 16 Achievement% 15 Wizard Run 0 Options --------- Layout 1 ASCII 0 Keyboard 0 Movement Mouse Keybinds 0 Fullscreen 2 Font 24/X11 Map View 50x35 Zoom Use 0% Tactical HUD 0 Map Filters NONE Filters NONE Steam 1 RUN: e20dece0-a15d-4556-ba3d-0603e6f2b8e1